fUSD/lending_fUSD_20250618
["ID","MTS","AMOUNT","RATE_DAILY","PERIOD"]
[366408508,1750234290258,-490.0,0.00017095,2]
[366408509,1750234290268,-1451.71,0.00017095,2]
[366408510,1750234290376,-860.42,0.00017095,2]
[366408511,1750234290399,-498.01,0.00017095,2]
[366408512,1750234290409,-490.0,0.00017095,2]
[366408513,1750234290419,-490.0,0.00017095,2]
[366408514,1750234290429,-490.0,0.00017095,2]
[366408515,1750234290438,-181.08,0.00017095,2]
[366408516,1750234290447,-758.8,0.00017095,2]
[366408517,1750234290458,-1106.44,0.00017095,2]
[366408518,1750234290467,-490.0,0.00017095,2]
[366408519,1750234290477,-832.1,0.00017095,2]
[366408520,1750234290487,-771.47,0.00017095,2]
[366408521,1750234290496,-2282.39,0.00017095,2]
[366408522,1750234290506,-679.42,0.00017095,2]
[366408523,1750234290516,-490.0,0.00017095,2]
[366408524,1750234290526,-490.0,0.00017095,2]
[366408525,1750234290537,-490.0,0.00017095,2]
[366408526,1750234290548,-490.0,0.00017095,2]
[366408527,1750234290557,-490.0,0.00017095,2]
[366408528,1750234290567,-1760.48,0.00017095,2]
[366408529,1750234290577,-906.73,0.00017095,2]
[366408530,1750234290587,-490.0,0.00017095,2]
[366408531,1750234290597,-759.2,0.00017095,2]
[366408532,1750234290608,-490.0,0.00017095,2]
[366408533,1750234290618,-490.0,0.00017095,2]
[366408534,1750234290628,-490.0,0.00017095,2]
[366408535,1750234290638,-490.0,0.00017095,2]
[366408536,1750234290648,-517.05,0.00017095,2]
[366408537,1750234290659,-193.46,0.00017095,2]
[366408538,1750234290668,-490.0,0.00017095,2]
[366408539,1750234290678,-490.0,0.00017095,2]
[366408540,1750234290687,-819.78,0.00017095,2]
[366408541,1750234290697,-490.0,0.00017095,2]
[366408542,1750234290706,-490.0,0.00017095,2]
[366408543,1750234290716,-522.72,0.00017095,2]
[366408544,1750234290726,-1368.42,0.00017095,2]
[366408545,1750234290736,-654.66,0.00017095,2]
[366408546,1750234290745,-532.75,0.00017095,2]
[366408547,1750234290754,-490.0,0.00017095,2]
[366408548,1750234290764,-490.0,0.00017095,2]
[366408549,1750234290774,-490.0,0.00017095,2]
[366408550,1750234290784,-490.0,0.00017095,2]
[366408551,1750234290794,-923.72,0.00017095,2]
[366408552,1750234290804,-490.0,0.00017095,2]
[366408553,1750234290813,-766.29,0.00017095,2]
[366408554,1750234290823,-1134.71,0.00017095,2]
[366408555,1750234290832,-607.17,0.00017095,2]
[366408556,1750234290842,-490.0,0.00017095,2]
[366408557,1750234290853,-1156.33,0.00017095,2]
[366408558,1750234290864,-3027.41,0.00017095,2]
[366408559,1750234290874,-490.0,0.00017095,2]
[366408560,1750234290884,-910.47,0.00017095,2]
[366408561,1750234290894,-993.99,0.00017095,2]
[366408562,1750234290905,-490.0,0.00017095,2]
[366408563,1750234290915,-490.0,0.00017095,2]
[366408564,1750234290926,-490.0,0.00017095,2]
[366408565,1750234290936,-490.0,0.00017095,2]
[366408566,1750234290946,-590.17,0.00017095,2]
[366408567,1750234290956,-629.74510297,0.00017095,2]
[366408568,1750234290966,-490.0,0.00017095,2]
[366408569,1750234290976,-810.5,0.00017095,2]
[366408570,1750234290986,-490.0,0.00017095,2]
[366408571,1750234290996,-490.0,0.00017095,2]
[366408572,1750234291006,-1547.38,0.00017095,2]
[366408573,1750234291016,-490.0,0.00017095,2]
[366408574,1750234291026,-910.84,0.00017095,2]
[366408575,1750234291036,-433.57020986,0.00017095,2]
[366408576,1750234291045,-594.64,0.00017095,2]
[366408577,1750234291055,-490.0,0.00017095,2]
[366408578,1750234291066,-614.62,0.00017095,2]
[366408579,1750234291076,-490.0,0.00017095,2]
[366408580,1750234291086,-2189.3,0.00017095,2]
[366408581,1750234291096,-504.42,0.00017095,2]
[366408582,1750234291106,-601.49,0.00017095,2]
[366408583,1750234291116,-490.0,0.00017095,2]
[366408584,1750234291127,-818.3,0.00017095,2]
[366408585,1750234291136,-2227.17,0.00017095,2]
[366408586,1750234291146,-490.0,0.00017095,2]
[366408587,1750234291155,-490.0,0.00017095,2]
[366408588,1750234291165,-576.64,0.00017095,2]
[366408589,1750234291175,-1350.66,0.00017095,2]
[366408590,1750234291185,-490.0,0.00017095,2]
[366408591,1750234291195,-490.0,0.00017095,2]
[366408592,1750234291205,-1446.22,0.00017095,2]
[366408593,1750234291215,-490.0,0.00017095,2]
[366408594,1750234291225,-2263.13,0.00017095,2]
[366408595,1750234291234,-1573.28,0.00017095,2]
[366408596,1750234291244,-490.0,0.00017095,2]
[366408597,1750234291254,-490.0,0.00017095,2]
[366408598,1750234291264,-785.62,0.00017095,2]
[366408599,1750234291273,-490.0,0.00017095,2]
[366408600,1750234291283,-521.02,0.00017095,2]
[366408601,1750234291293,-1023.47,0.00017095,2]
[366408602,1750234291303,-490.0,0.00017095,2]
[366408603,1750234291313,-1474.71,0.00017095,2]
[366408604,1750234291324,-710.39,0.00017095,2]
[366408605,1750234291334,-490.0,0.00017095,2]
[366408606,1750234291344,-490.0,0.00017095,2]
[366408607,1750234291354,-632.81,0.00017095,2]
[366408608,1750234291364,-490.0,0.00017095,2]
[366408609,1750234291374,-490.0,0.00017095,2]
[366408610,1750234291383,-490.0,0.00017095,2]
[366408611,1750234291393,-761.28,0.00017095,2]
[366408612,1750234291404,-1914.47,0.00017095,2]
[366408613,1750234291415,-490.0,0.00017095,2]
[366408614,1750234291425,-1433.02,0.00017095,2]
[366408615,1750234291435,-2225.24,0.00017095,2]
[366408616,1750234291445,-770.88,0.00017095,2]
[366408617,1750234291454,-490.0,0.00017095,2]
[366408618,1750234291464,-1175.96,0.00017095,2]
[366408619,1750234291473,-490.0,0.00017095,2]
[366408620,1750234291483,-563.47039717,0.00017095,2]
[366408621,1750234291493,-490.0,0.00017095,2]
[366408622,1750234291503,-490.0,0.00017095,2]
[366408623,1750234291513,-614.8,0.00017095,2]
[366408624,1750234291522,-1968.98,0.00017095,2]
[366408625,1750234291532,-490.0,0.00017095,2]
[366408626,1750234291542,-490.0,0.00017095,2]
[366408627,1750234291551,-1018.92,0.00017095,2]
[366408628,1750234291561,-490.0,0.00017095,2]
[366408629,1750234291571,-1627.4,0.00017095,2]
[366408630,1750234291582,-490.0,0.00017095,2]
[366408631,1750234291592,-787.05,0.00017095,2]
[366408632,1750234291603,-490.0,0.00017095,2]
[366408633,1750234291613,-490.0,0.00017095,2]
[366408634,1750234291623,-587.01,0.00017095,2]
[366408635,1750234291633,-490.0,0.00017095,2]
[366408636,1750234291644,-490.0,0.00017095,2]
[366408637,1750234291654,-688.57,0.00017095,2]
[366408638,1750234291664,-612.6,0.00017095,2]
[366408639,1750234291674,-673.49,0.00017095,2]
[366408640,1750234291683,-490.0,0.00017095,2]
[366408641,1750234291693,-1245.73,0.00017095,2]
[366408642,1750234291703,-567.43,0.00017095,2]
[366408643,1750234291712,-1384.25,0.00017095,2]
[366408644,1750234291722,-490.0,0.00017095,2]
[366408645,1750234291732,-490.0,0.00017095,2]
[366408646,1750234291741,-490.0,0.00017095,2]
[366408647,1750234291751,-713.96,0.00017095,2]
[366408648,1750234291761,-490.0,0.00017095,2]
[366408649,1750234291771,-2580.01,0.00017095,2]
[366408650,1750234291782,-501.23,0.00017095,2]
[366408651,1750234291792,-490.0,0.00017095,2]
[366408652,1750234291801,-2227.74,0.00017095,2]
[366408653,1750234291812,-275.33012829,0.00017095,2]
[366408654,1750234291822,-490.0,0.00017095,2]
[366408655,1750234291832,-1651.88,0.00017095,2]
[366408656,1750234291842,-503.74,0.00017095,2]
[366408657,1750234291852,-490.0,0.00017095,2]
[366408658,1750234291864,-528.6,0.00017095,2]
[366408659,1750234291874,-490.0,0.00017095,2]
[366408660,1750234291884,-533.32,0.00017095,2]
[366408661,1750234291894,-1539.13,0.00017095,2]
[366408662,1750234291904,-865.52,0.00017095,2]
[366408663,1750234291916,-583.36,0.00017095,2]
[366408664,1750234291926,-1296.85,0.00017095,2]
[366408665,1750234291936,-490.0,0.00017095,2]
[366408666,1750234291945,-622.91,0.00017095,2]
[366408667,1750234291955,-1000.0,0.00017095,2]
[366408668,1750234291965,-743.38,0.00017095,2]
[366408669,1750234291974,-2516.8,0.00017095,2]
[366408670,1750234291984,-490.0,0.00017095,2]
[366408671,1750234291994,-490.0,0.00017095,2]
[366408672,1750234292005,-1921.62,0.00017095,2]
[366408673,1750234292015,-490.0,0.00017095,2]
[366408674,1750234292025,-490.0,0.00017095,2]
[366408675,1750234292035,-614.88,0.00017095,2]
[366408676,1750234292045,-490.0,0.00017095,2]
[366408677,1750234292055,-1692.79,0.00017095,2]
[366408678,1750234292065,-553.43358958,0.00017095,2]
[366408679,1750234292075,-490.0,0.00017095,2]
[366408680,1750234292085,-1748.68,0.00017095,2]
[366408681,1750234292095,-490.0,0.00017095,2]
[366408682,1750234292106,-490.0,0.00017095,2]
[366408683,1750234292116,-490.0,0.00017095,2]
[366408684,1750234292126,-688.32,0.00017095,2]
[366408685,1750234292136,-1210.3,0.00017095,2]
[366408686,1750234292146,-547.41,0.00017095,2]
[366408687,1750234292157,-490.0,0.00017095,2]
[366408688,1750234292167,-785.73,0.00017095,2]
[366408689,1750234292177,-1165.23,0.00017095,2]
[366408690,1750234292187,-1377.84,0.00017095,2]
[366408691,1750234292516,-1790.2,0.00017095,2]
[366408692,1750234292538,-797.57,0.00017095,2]
[366408693,1750234292548,-490.0,0.00017095,2]
[366408694,1750234292558,-1079.33,0.00017095,2]
[366408695,1750234292568,-490.0,0.00017095,2]
[366408696,1750234292579,-490.0,0.00017095,2]
[366408697,1750234292589,-1205.73,0.00017095,2]
[366408698,1750234292599,-639.17685977,0.00017095,2]
[366408699,1750234292612,-3504.12,0.00017095,2]
[366408700,1750234292622,-490.0,0.00017095,2]
[366408701,1750234292632,-490.0,0.00017095,2]
[366408702,1750234292642,-1500.35,0.00017095,2]
[366408703,1750234292653,-490.0,0.00017095,2]
[366408704,1750234292662,-490.0,0.00017095,2]
[366408705,1750234292672,-667.87,0.00017095,2]
[366408706,1750234292682,-2416.72,0.00017095,2]
[366408707,1750234292692,-490.0,0.00017095,2]
[366408708,1750234292701,-653.2,0.00017095,2]
[366408709,1750234292711,-1074.24,0.00017095,2]
[366408710,1750234292721,-490.0,0.00017095,2]
[366408711,1750234292730,-490.0,0.00017095,2]
[366408712,1750234292740,-1127.96,0.00017095,2]
[366408713,1750234292750,-490.0,0.00017095,2]
[366408714,1750234292760,-1435.41,0.00017095,2]
[366408715,1750234292770,-490.0,0.00017095,2]
[366408716,1750234292781,-186.90644145,0.00017095,2]
[366408717,1750234292790,-1064.92,0.00017095,2]
[366408718,1750234292800,-610.86,0.00017095,2]
[366408719,1750234292809,-490.0,0.00017095,2]
[366408720,1750234292818,-1599.47,0.00017095,2]
[366408721,1750234292828,-948.0,0.00017095,2]
[366408722,1750234292839,-2022.77,0.00017095,2]
[366408723,1750234292849,-994.98,0.00017095,2]
[366408724,1750234292862,-584.43,0.00017095,2]
[366408725,1750234292871,-923.15,0.00017095,2]
[366408726,1750234292881,-490.0,0.00017095,2]
[366408727,1750234292892,-581.74,0.00017095,2]
[366408728,1750234292901,-934.13,0.00017095,2]
[366408729,1750234292910,-1330.77,0.00017095,2]
[366408730,1750234292920,-2053.82,0.00017095,2]
[366408731,1750234292930,-735.33,0.00017095,2]
[366408732,1750234292940,-1229.97,0.00017095,2]
[366408733,1750234292950,-490.0,0.00017095,2]
[366408734,1750234292960,-490.0,0.00017095,2]
[366408735,1750234292970,-1617.6,0.00017095,2]
[366408736,1750234292980,-2449.28,0.00017095,2]
[366408737,1750234292990,-668.74,0.00017095,2]
[366408738,1750234293000,-2691.97,0.00017095,2]
[366408739,1750234293010,-8627.5,0.00017095,2]
[366408740,1750234293020,-490.0,0.00017095,2]
[366408741,1750234293030,-2640.35,0.00017095,2]
[366408742,1750234293040,-1226.12,0.00017095,2]
[366408743,1750234293050,-1676.37,0.00017095,2]
[366408744,1750234293060,-1305.6,0.00017095,2]
[366408745,1750234293070,-2432.93,0.00017095,2]
[366408746,1750234293080,-490.0,0.00017095,2]
[366408747,1750234293090,-4894.13,0.00017095,2]
[366408748,1750234293100,-532.55,0.00017095,2]
[366408749,1750234293112,-21368.42,0.00017095,2]
[366408750,1750234293121,-618.45,0.00017095,2]
[366408751,1750234293131,-24970.95,0.00017095,2]
[366408752,1750234293142,-18395.49,0.00017095,2]
[366408753,1750234293152,-490.0,0.00017095,2]
[366408754,1750234293162,-490.0,0.00017095,2]
[366408755,1750234293172,-1866.72,0.00017095,2]
[366408756,1750234293181,-695.99,0.00017095,2]
[366408757,1750234293191,-1316.53,0.00017095,2]
[366408758,1750234293201,-490.0,0.00017095,2]
[366408759,1750234293211,-1252.53,0.00017095,2]
[366408760,1750234293220,-490.0,0.00017095,2]
[366408761,1750234293230,-2062.39,0.00017095,2]
[366408762,1750234293240,-796.41,0.00017095,2]
[366408763,1750234293250,-913.62,0.00017095,2]
[366408764,1750234293260,-490.0,0.00017095,2]
[366408765,1750234293270,-8176.31,0.00017095,2]
[366408766,1750234293280,-2397.79,0.00017095,2]
[366408767,1750234293293,-501.21,0.00017095,2]
[366408768,1750234293303,-490.0,0.00017095,2]
[366408769,1750234293313,-490.0,0.00017095,2]
[366408770,1750234293323,-4581.46,0.00017095,2]
[366408771,1750234293332,-1623.36,0.00017095,2]
[366408772,1750234293342,-3506.03,0.00017095,2]
[366408773,1750234293352,-1741.24,0.00017095,2]
[366408774,1750234293364,-4659.1,0.00017095,2]
[366408775,1750234293374,-490.0,0.00017095,2]
[366408776,1750234293384,-490.0,0.00017095,2]
[366408777,1750234293395,-490.0,0.00017095,2]
[366408778,1750234293405,-1903.14,0.00017095,2]
[366408779,1750234293415,-1998.78,0.00017095,2]
[366408780,1750234293425,-1405.34,0.00017095,2]
[366408781,1750234293435,-2377.87,0.00017095,2]
[366408782,1750234293444,-490.0,0.00017095,2]
[366408783,1750234293454,-6249.52,0.00017095,2]
[366408784,1750234293465,-490.0,0.00017095,2]
[366408785,1750234293475,-404.49515166,0.00017095,2]
[366408786,1750234293485,-490.0,0.00017095,2]
[366408787,1750234293496,-569.01,0.00017095,2]
[366408788,1750234293506,-944.9,0.00017095,2]
[366408789,1750234293516,-490.0,0.00017095,2]
[366408790,1750234293526,-490.0,0.00017095,2]
[366408791,1750234293536,-1692.65,0.00017095,2]
[366408792,1750234293546,-15533.32,0.00017095,2]
[366408793,1750234293556,-490.0,0.00017095,2]
[366408794,1750234293567,-490.0,0.00017095,2]
[366408795,1750234293577,-509.93,0.00017095,2]
[366408796,1750234293587,-932.9,0.00017095,2]
[366408797,1750234293597,-3172.28,0.00017095,2]
[366408798,1750234293608,-1804.27,0.00017095,2]
[366408799,1750234293618,-1337.85,0.00017095,2]
[366408800,1750234293628,-1332.52,0.00017095,2]
[366408801,1750234293638,-1336.3,0.00017095,2]
[366408802,1750234293649,-2853.57,0.00017095,2]
[366408803,1750234293659,-1850.55,0.00017095,2]
[366408804,1750234293669,-490.0,0.00017095,2]
[366408805,1750234293678,-845.71,0.00017095,2]
[366408806,1750234293688,-490.0,0.00017095,2]
[366408807,1750234293699,-1988.77,0.00017095,2]
[366408808,1750234293709,-3685.42,0.00017095,2]
[366408809,1750234293720,-517.42,0.00017095,2]
[366408810,1750234293730,-582.5,0.00017095,2]
[366408811,1750234293741,-494.56,0.00017095,2]
[366408812,1750234293751,-490.0,0.00017095,2]
[366408813,1750234293762,-3924.46,0.00017095,2]
[366408814,1750234293773,-959.76,0.00017095,2]
[366408815,1750234293784,-1611.5,0.00017095,2]
[366408816,1750234293796,-490.0,0.00017095,2]
[366408817,1750234293806,-686.73,0.00017095,2]
[366408818,1750234293817,-1006.01,0.00017095,2]
[366408819,1750234293827,-6713.86,0.00017095,2]
[366408820,1750234293836,-8789.62,0.00017095,2]
[366408821,1750234293846,-691.36,0.00017095,2]
[366408822,1750234293858,-2002.11,0.00017095,2]
[366408823,1750234293869,-2483.72,0.00017095,2]
[366408824,1750234293879,-2649.86,0.00017095,2]
[366408825,1750234293890,-1288.05,0.00017095,2]
[366408826,1750234293900,-1193.27,0.00017095,2]
[366408827,1750234293910,-1950.9,0.00017095,2]
[366408828,1750234293920,-563.86,0.00017095,2]
[366408829,1750234293930,-490.0,0.00017095,2]
[366408830,1750234293940,-1350.94,0.00017095,2]
[366408831,1750234293951,-490.0,0.00017095,2]
[366408832,1750234293962,-490.0,0.00017095,2]
[366408833,1750234293972,-3547.75,0.00017095,2]
[366408834,1750234293982,-4782.51,0.00017095,2]
[366408835,1750234293992,-490.0,0.00017095,2]
[366408836,1750234294002,-490.0,0.00017095,2]
[366408837,1750234294013,-642.09,0.00017095,2]
[366408838,1750234294023,-490.0,0.00017095,2]
[366408839,1750234294033,-2041.7,0.00017095,2]
[366408840,1750234294043,-6696.19,0.00017095,2]
[366408841,1750234294053,-490.0,0.00017095,2]
[366408842,1750234294064,-1880.43,0.00017095,2]
[366408843,1750234294074,-490.0,0.00017095,2]
[366408844,1750234294084,-2875.7,0.00017095,2]
[366408845,1750234294094,-750.98,0.00017095,2]
[366408846,1750234294105,-775.24,0.00017095,2]
[366408847,1750234294115,-1972.87,0.00017095,2]
[366408848,1750234294125,-8494.51,0.00017095,2]
[366408849,1750234294136,-4677.88,0.00017095,2]
[366408850,1750234294146,-2681.46,0.00017095,2]
[366408851,1750234294156,-500.0,0.00017095,2]
[366408852,1750234294166,-500.0,0.00017095,2]
[366408853,1750234294176,-500.0,0.00017095,2]
[366408854,1750234294186,-6821.03,0.00017095,2]
[366408855,1750234294196,-500.0,0.00017095,2]
[366408856,1750234294206,-500.0,0.00017095,2]
[366408857,1750234294217,-490.0,0.00017095,2]
[366408858,1750234294226,-500.0,0.00017095,2]
[366408859,1750234294236,-500.0,0.00017095,2]
[366408860,1750234294246,-500.0,0.00017095,2]
[366408861,1750234294257,-1104.94,0.00017095,2]
[366408862,1750234294267,-500.0,0.00017095,2]
[366408863,1750234294276,-3668.3,0.00017095,2]
[366408864,1750234294289,-500.0,0.00017095,2]
[366408865,1750234294299,-500.0,0.00017095,2]
[366408866,1750234294309,-500.0,0.00017095,2]
[366408867,1750234294319,-500.0,0.00017095,2]
[366408868,1750234294331,-500.0,0.00017095,2]
[366408869,1750234294341,-500.0,0.00017095,2]
[366408870,1750234294351,-500.0,0.00017095,2]
[366408871,1750234294363,-500.0,0.00017095,2]
[366408872,1750234294374,-500.0,0.00017095,2]
[366408873,1750234294384,-490.0,0.00017095,2]
[366408874,1750234294394,-500.0,0.00017095,2]
[366408875,1750234294404,-500.0,0.00017095,2]
[366408876,1750234294413,-1439.2,0.00017095,2]
[366408877,1750234294423,-1269.38,0.00017095,2]
[366408878,1750234294432,-500.0,0.00017095,2]
[366408879,1750234294442,-500.0,0.00017095,2]
[366408880,1750234294452,-500.0,0.00017095,2]
[366408881,1750234294462,-500.0,0.00017095,2]
[366408882,1750234294472,-2481.27,0.00017095,2]
[366408883,1750234294481,-500.0,0.00017095,2]
[366408884,1750234294490,-500.0,0.00017095,2]
[366408885,1750234294499,-500.0,0.00017095,2]
[366408886,1750234294508,-997.96,0.00017095,2]
[366408887,1750234294518,-500.0,0.00017095,2]
[366408888,1750234294527,-829.6,0.00017095,2]
[366408889,1750234294536,-500.0,0.00017095,2]
[366408890,1750234294545,-500.0,0.00017095,2]
[366408891,1750234294555,-9278.6,0.00017095,2]
[366408892,1750234294564,-2367.18,0.00017095,2]
[366408893,1750234294574,-500.0,0.00017095,2]
[366408894,1750234294583,-2475.43,0.00017095,2]
[366408895,1750234294593,-500.0,0.00017095,2]
[366408896,1750234294603,-500.0,0.00017095,2]
[366408897,1750234294612,-2422.37,0.00017095,2]
[366408898,1750234294623,-500.0,0.00017095,2]
[366408899,1750234294632,-490.0,0.00017095,2]
[366408900,1750234294642,-500.0,0.00017095,2]
[366408901,1750234294651,-500.0,0.00017095,2]
[366408902,1750234294660,-1510.19,0.00017095,2]
[366408903,1750234294670,-500.0,0.00017095,2]
[366408904,1750234294680,-500.0,0.00017095,2]
[366408905,1750234294689,-500.0,0.00017095,2]
[366408906,1750234294699,-500.0,0.00017095,2]
[366408907,1750234294709,-500.0,0.00017095,2]
[366408908,1750234294718,-500.0,0.00017095,2]
[366408909,1750234294728,-1244.73,0.00017095,2]
[366408910,1750234294738,-500.0,0.00017095,2]
[366408911,1750234294748,-906.47,0.00017095,2]
[366408912,1750234294758,-500.0,0.00017095,2]
[366408913,1750234294768,-799.64,0.00017095,2]
[366408914,1750234294778,-490.0,0.00017095,2]
[366408915,1750234294788,-500.0,0.00017095,2]
[366408916,1750234294797,-500.0,0.00017095,2]
[366408917,1750234294808,-1576.78,0.00017095,2]
[366408918,1750234294817,-500.0,0.00017095,2]
[366408919,1750234294828,-500.0,0.00017095,2]
[366408920,1750234294838,-500.0,0.00017095,2]
[366408921,1750234294848,-500.0,0.00017095,2]
[366408922,1750234294859,-500.0,0.00017095,2]
[366408923,1750234294868,-500.0,0.00017095,2]
[366408924,1750234294878,-500.0,0.00017095,2]
[366408925,1750234294888,-500.0,0.00017095,2]
[366408926,1750234294981,-500.0,0.00017095,2]
[366408927,1750234294992,-500.0,0.00017095,2]
[366408928,1750234295002,-1255.38,0.00017095,2]
[366408929,1750234295012,-500.0,0.00017095,2]
[366408930,1750234295022,-3264.06,0.00017095,2]
[366408931,1750234295032,-500.0,0.00017095,2]
[366408932,1750234295042,-2728.86,0.00017095,2]
[366408933,1750234295052,-500.0,0.00017095,2]
[366408934,1750234295062,-500.0,0.00017095,2]
[366408935,1750234295072,-500.0,0.00017095,2]
[366408936,1750234295082,-500.0,0.00017095,2]
[366408937,1750234295092,-500.0,0.00017095,2]
[366408938,1750234295103,-500.0,0.00017095,2]
[366408939,1750234295114,-720.09,0.00017095,2]
[366408940,1750234295124,-500.0,0.00017095,2]
[366408941,1750234295134,-500.0,0.00017095,2]
[366408942,1750234295143,-490.0,0.00017095,2]
[366408943,1750234295153,-500.0,0.00017095,2]
[366408944,1750234295163,-1411.73,0.00017095,2]
[366408945,1750234295174,-1948.47,0.00017095,2]
[366408946,1750234295184,-3505.74,0.00017095,2]
[366408947,1750234295194,-500.0,0.00017095,2]
[366408948,1750234295203,-490.0,0.00017095,2]
[366408949,1750234295213,-585.55964545,0.00017095,2]
[366408950,1750234295222,-500.0,0.00017095,2]
[366408951,1750234295232,-500.0,0.00017095,2]
[366408952,1750234295242,-500.0,0.00017095,2]
[366408953,1750234295252,-2040.33,0.00017095,2]
[366408954,1750234295262,-500.0,0.00017095,2]
[366408955,1750234295271,-700.58,0.00017095,2]
[366408956,1750234295281,-500.0,0.00017095,2]
[366408957,1750234295291,-500.0,0.00017095,2]
[366408958,1750234295301,-500.0,0.00017095,2]
[366408959,1750234295311,-500.0,0.00017095,2]
[366408960,1750234295321,-490.0,0.00017095,2]
[366408961,1750234295331,-500.0,0.00017095,2]
[366408962,1750234295341,-500.0,0.00017095,2]
[366408963,1750234295350,-500.0,0.00017095,2]
[366408964,1750234295361,-500.0,0.00017095,2]
[366408965,1750234295370,-500.0,0.00017095,2]
[366408966,1750234295380,-500.0,0.00017095,2]
[366408967,1750234295390,-500.0,0.00017095,2]
[366408968,1750234295399,-5782.65,0.00017095,2]
[366408969,1750234295410,-500.0,0.00017095,2]
[366408970,1750234295420,-490.0,0.00017095,2]
[366408971,1750234295430,-500.0,0.00017095,2]
[366408972,1750234295440,-500.0,0.00017095,2]
[366408973,1750234295449,-685.94,0.00017095,2]
[366408974,1750234295458,-500.0,0.00017095,2]
[366408975,1750234295468,-500.0,0.00017095,2]
[366408976,1750234295478,-500.0,0.00017095,2]
[366408977,1750234295487,-500.0,0.00017095,2]
[366408978,1750234295496,-490.0,0.00017095,2]
[366408979,1750234295507,-490.0,0.00017095,2]
[366408980,1750234295517,-782.02,0.00017095,2]
[366408981,1750234295526,-3095.17,0.00017095,2]
[366408982,1750234295536,-587.71,0.00017095,2]
[366408983,1750234295545,-683.51,0.00017095,2]
[366408984,1750234295555,-1431.28,0.00017095,2]
[366408985,1750234295564,-3006.36,0.00017095,2]
[366408986,1750234295574,-490.0,0.00017095,2]
[366408987,1750234295584,-1151.27,0.00017095,2]
[366408988,1750234295594,-1194.57,0.00017095,2]
[366408989,1750234295603,-13289.93,0.00017095,2]
[366408990,1750234295614,-633.71,0.00017095,2]
[366408991,1750234295623,-150.0,0.00017095,2]
[366408992,1750234295634,-490.0,0.00017095,2]
[366408993,1750234295644,-3532.09,0.00017095,2]
[366408994,1750234295655,-490.0,0.00017095,2]
[366408995,1750234295665,-490.0,0.00017095,2]
[366408996,1750234295675,-1164.03,0.00017095,2]
[366408997,1750234295685,-5644.14,0.00017095,2]
[366408998,1750234295694,-490.0,0.00017095,2]
[366408999,1750234295704,-2639.26,0.00017095,2]
[366409000,1750234295714,-2054.07,0.00017095,2]
[366409001,1750234295724,-8173.15,0.00017095,2]
[366409002,1750234295734,-724.72,0.00017095,2]
[366409003,1750234295744,-490.0,0.00017095,2]
[366409004,1750234295755,-4076.85,0.00017095,2]
[366409005,1750234295764,-490.0,0.00017095,2]
[366409006,1750234295774,-4248.64,0.00017095,2]
[366409007,1750234295783,-953.91,0.00017095,2]